bitfinex/quotes_BTCUSD_20251212
["timestamp","ask_amount","ask_price","bid_price","bid_amount"]
[1765497847945,0.26162675,92540.0,92539.0,0.0003882]
[1765497848559,0.60234514,92540.0,92539.0,0.0003882]
[1765497848760,0.71385276,92540.0,92539.0,0.0013882]
[1765497849095,0.71285276,92540.0,92539.0,0.0003882]
[1765497849301,0.71185276,92540.0,92539.0,0.0003882]
[1765497849499,0.71385276,92540.0,92539.0,0.0013882]
[1765497849845,0.71585276,92540.0,92539.0,0.0023882]
[1765497850061,0.71746563,92540.0,92539.0,0.0023882]
[1765497850245,0.60695801,92540.0,92539.0,0.0023882]
[1765497850723,0.55693962,92540.0,92539.0,0.0023882]
[1765497850921,0.57401962,92540.0,92539.0,0.0023882]
[1765497851272,0.62403801,92540.0,92539.0,0.0023882]
[1765497851486,0.26068515,92515.0,92514.0,7.014e-05]
[1765497852686,0.26168515,92515.0,92514.0,7.014e-05]
[1765497852896,0.26268515,92515.0,92514.0,7.014e-05]
[1765497853097,0.26168515,92515.0,92514.0,7.014e-05]
[1765497854990,0.26268515,92515.0,92514.0,7.014e-05]
[1765497855198,0.35767577,92515.0,92514.0,7.014e-05]
[1765497862922,0.26268515,92515.0,92514.0,7.014e-05]
[1765497863786,0.046504,92515.0,92514.0,7.014e-05]
[1765497864012,0.26268515,92515.0,92514.0,7.014e-05]
[1765497867905,0.27891128,92515.0,92514.0,7.014e-05]
[1765497868647,0.26268515,92515.0,92514.0,7.014e-05]
[1765497868848,0.35875666,92515.0,92514.0,7.014e-05]
[1765497869254,0.27976515,92515.0,92514.0,7.014e-05]
[1765497871633,0.26268515,92515.0,92514.0,7.014e-05]
[1765497872049,0.21818115,92515.0,92514.0,7.014e-05]
[1765497872280,0.002,92515.0,92514.0,0.01562014]
[1765497872485,0.002,92515.0,92514.0,0.25569363]
[1765497872660,0.21818115,92515.0,92514.0,0.03951014]
[1765497872865,0.21818115,92515.0,92514.0,0.01562014]
[1765497873102,0.25670891,92515.0,92514.0,7.014e-05]
[1765497873307,0.04052776,92515.0,92514.0,7.014e-05]
[1765497873519,0.002,92515.0,92514.0,0.21625363]
[1765497873718,0.21818115,92515.0,92514.0,7.014e-05]
[1765497873833,0.002,92515.0,92514.0,0.01562014]
[1765497874238,0.002,92515.0,92514.0,0.23180363]
[1765497876064,0.002,92515.0,92514.0,0.25569363]
[1765497879882,0.21818115,92515.0,92514.0,0.01562014]
[1765497880081,0.21818115,92515.0,92514.0,7.014e-05]
[1765497880294,0.22818204,92515.0,92514.0,7.014e-05]
[1765497890541,0.24526204,92515.0,92514.0,7.014e-05]
[1765497901846,0.58598043,92515.0,92514.0,7.014e-05]
[1765497902280,0.61844464,92515.0,92514.0,7.014e-05]
[1765497902497,0.75225713,92515.0,92514.0,7.014e-05]
[1765497903224,0.75025713,92515.0,92514.0,7.014e-05]
[1765497903639,0.21626063,92481.0,92474.0,0.07038808]
[1765497903778,0.26076463,92481.0,92480.0,0.00025866]
[1765497904770,0.001,92481.0,92480.0,0.00025866]
[1765497904972,0.001,92481.0,92480.0,0.03961866]
[1765497905422,0.21726063,92481.0,92480.0,0.03961866]
[1765497905803,0.001,92481.0,92480.0,0.25588163]
[1765497906005,0.002,92481.0,92480.0,0.25588163]
[1765497908010,0.001,92481.0,92480.0,0.65682808]
[1765497908217,0.21626063,92481.0,92480.0,1.00025866]
[1765497908422,0.21626063,92481.0,92480.0,0.00025866]
[1765497908423,0.21726063,92481.0,92480.0,0.00025866]
[1765497908735,0.31064824,92481.0,92480.0,0.00025866]
[1765497909120,0.26276463,92481.0,92480.0,0.00025866]
[1765497909339,0.26176463,92481.0,92480.0,0.00123715]
[1765497909559,0.26076463,92481.0,92480.0,0.00123715]
[1765497909767,0.26176463,92481.0,92480.0,0.00123715]
[1765497909919,0.26276463,92481.0,92480.0,0.00123715]
[1765497910426,0.26176463,92481.0,92480.0,0.00123715]
[1765497910696,0.26276463,92481.0,92480.0,0.00223715]
[1765497913850,0.21826063,92481.0,92480.0,0.00223715]
[1765497915377,0.26276463,92481.0,92480.0,0.00223715]
[1765497917809,0.22987439,92481.0,92480.0,0.00223715]
[1765497920012,0.21826063,92481.0,92480.0,0.00223715]
[1765497920229,0.26276463,92481.0,92480.0,0.00223715]
[1765497921051,0.26276463,92481.0,92480.0,0.01845715]
[1765497921262,0.26276463,92481.0,92480.0,0.00223715]
[1765497921474,0.21826063,92481.0,92480.0,0.00223715]
[1765497921677,0.21826063,92481.0,92480.0,0.04179715]
[1765497921885,0.002,92481.0,92480.0,0.04179715]
[1765497922138,0.02908129,92510.0,92480.0,0.04179715]
[1765497922139,0.01081151,92494.0,92491.0,0.22704681]
[1765497922463,0.01000089,92504.0,92490.0,0.01081197]
[1765497922464,0.21620613,92505.0,92503.0,0.02818]
[1765497922668,0.01081046,92503.0,92502.0,0.01196]
[1765497922793,0.22702147,92503.0,92502.0,0.01196]
[1765497922998,0.22702147,92503.0,92502.0,0.05152]
[1765497923198,0.22701689,92505.0,92502.0,0.05152]
[1765497923401,0.22701465,92507.0,92504.0,0.01622]
[1765497923719,0.22701465,92507.0,92506.0,0.01622]
[1765497924121,0.22701465,92507.0,92506.0,0.03956]
[1765497924323,0.01080975,92509.0,92506.0,0.03956]
[1765497924487,0.01080964,92510.0,92508.0,0.01622]
[1765497924687,0.01080964,92510.0,92507.0,0.02334]
[1765497924688,0.01080964,92510.0,92509.0,0.01622]
[1765497925193,0.01080964,92510.0,92509.0,0.03956]
[1765497925432,0.21620219,92506.0,92503.0,0.01081046]
[1765497925633,0.01080999,92507.0,92504.0,0.01081034]
[1765497925838,0.01080975,92509.0,92506.0,0.01622]
[1765497925992,0.01080975,92509.0,92505.0,0.01081022]
[1765497926198,0.22700609,92509.0,92508.0,0.01622]
[1765497926635,0.22700609,92509.0,92508.0,0.03956]
[1765497927423,0.22700609,92509.0,92505.0,0.01081022]
[1765497927424,0.21620452,92505.0,92504.0,0.002]
[1765497928012,0.26071787,92501.0,92500.0,0.01196]
[1765497928207,0.26071572,92502.0,92500.0,0.0353]
[1765497928424,0.26071572,92502.0,92501.0,0.01622613]
[1765497928623,0.21621172,92502.0,92501.0,0.01622613]
[1765497929044,0.22702073,92503.0,92501.0,0.01622613]
[1765497929470,0.001,92502.0,92501.0,0.01622613]
[1765497929684,0.002,92502.0,92501.0,0.03018613]
[1765497929928,0.002,92502.0,92501.0,0.05352613]
[1765497930202,0.001,92502.0,92501.0,0.05152613]
[1765497930625,0.001,92502.0,92501.0,0.02818613]
[1765497930832,0.22702073,92503.0,92501.0,0.02818613]
[1765497931168,0.22802073,92503.0,92501.0,0.05252613]
[1765497931375,0.22802073,92503.0,92501.0,0.05452613]
[1765497931376,0.22902073,92503.0,92501.0,0.05452613]
[1765497931625,0.22802073,92503.0,92501.0,0.05352613]
[1765497931856,0.22802073,92503.0,92501.0,0.05452613]
[1765497931971,0.001,92502.0,92501.0,0.05452613]
[1765497932381,0.22802073,92503.0,92501.0,0.03018613]
[1765497932781,0.22902073,92503.0,92501.0,0.03118613]
[1765497933397,0.21621154,92502.0,92501.0,0.03118613]
[1765497933812,0.21621154,92502.0,92501.0,0.07112017]
[1765497934371,0.21621154,92502.0,92501.0,0.06812017]
[1765497934505,0.21721154,92502.0,92501.0,0.06912017]
[1765497934706,0.21821154,92502.0,92501.0,0.07112017]
[1765497934907,0.26271554,92502.0,92501.0,0.01960017]
[1765497935883,0.21821154,92502.0,92501.0,0.00337404]
[1765497936004,0.35817208,92502.0,92501.0,0.00337404]
[1765497936844,0.26432841,92502.0,92501.0,0.00337404]
[1765497937713,0.26332841,92502.0,92501.0,0.00237404]
[1765497937921,0.001,92502.0,92501.0,0.25814791]
[1765497938131,0.001,92502.0,92501.0,0.2679586]
[1765497938338,0.001,92502.0,92501.0,0.34243743]
[1765497938538,0.001,92502.0,92501.0,0.34343743]
[1765497938869,0.21620633,92505.0,92502.0,0.21621086]
[1765497938995,0.22701292,92506.0,92503.0,0.21620764]
[1765497939204,0.22701292,92506.0,92505.0,0.01622]
[1765497939416,0.22701292,92506.0,92505.0,0.03956]
[1765497939616,0.27152569,92504.0,92501.0,0.001]
[1765497939847,0.044504,92503.0,92501.0,0.001]
[1765497940018,0.21621154,92502.0,92501.0,0.001]
[1765497940243,0.2278253,92502.0,92501.0,0.001]
[1765497940614,0.01081151,92494.0,92484.0,0.0353]
[1765497940831,0.2270663,92484.0,92481.0,0.01622613]
[1765497941051,0.2270663,92484.0,92480.0,0.0002]
[1765497941052,0.01081279,92483.0,92480.0,0.0002]
[1765497941259,0.21626063,92481.0,92480.0,0.0002]
[1765497941488,0.26076463,92481.0,92480.0,0.0002]
[1765497942099,0.31078302,92481.0,92480.0,0.0002]
[1765497942309,0.60148302,92481.0,92480.0,0.002]
[1765497942517,0.60150641,92471.0,92448.0,0.03884939]
[1765497942734,0.61862641,92471.0,92446.0,0.03884939]
[1765497942944,0.22634106,92447.0,92446.0,0.03884939]
[1765497943166,0.22634106,92447.0,92445.0,0.03884939]
[1765497943167,0.01000089,92446.0,92445.0,0.03884939]
[1765497943368,0.044504,92444.0,92443.0,0.03884939]
[1765497943571,0.01000089,92442.0,92441.0,0.03884939]
[1765497943773,0.21635421,92441.0,92440.0,0.0002]
[1765497944013,0.21632782,92453.0,92450.0,0.21633219]
[1765497944169,0.22714801,92451.0,92448.0,0.01196]
[1765497944368,0.01081618,92454.0,92451.0,0.21633018]
[1765497944595,0.02081649,92459.0,92453.0,0.03420218]
[1765497944807,0.01000089,92459.0,92456.0,0.21631911]
[1765497945000,0.01081513,92463.0,92458.0,0.02818]
[1765497945001,0.01081525,92462.0,92458.0,0.02818]
[1765497945195,0.21630137,92464.0,92462.0,0.01622]
[1765497945624,0.21631209,92459.0,92458.0,0.01196]
[1765497945793,0.044504,92458.0,92455.0,0.01081607]
[1765497945984,0.044504,92458.0,92456.0,0.21631869]
[1765497946392,0.001,92459.0,92458.0,0.21631443]
[1765497946612,0.001,92459.0,92458.0,0.23155443]
[1765497946834,0.001,92459.0,92458.0,0.25530443]
[1765497947036,0.0108142,92471.0,92466.0,0.01081478]
[1765497947250,0.0108142,92471.0,92470.0,0.01622613]
[1765497947631,0.0553182,92471.0,92470.0,0.01622613]
[1765497948483,0.0108142,92471.0,92470.0,0.04321613]
[1765497948747,0.0118142,92471.0,92470.0,0.04321613]
[1765497948952,0.0573182,92471.0,92470.0,0.02797613]
[1765497949913,0.26278802,92471.0,92470.0,0.02797613]
[1765497950220,0.26178802,92471.0,92470.0,0.02797613]
[1765497950452,0.26278802,92471.0,92470.0,0.02897613]
[1765497950802,0.002,92471.0,92470.0,0.04421613]
[1765497952597,0.002,92471.0,92470.0,0.06796613]
[1765497954695,0.22706521,92485.0,92481.0,0.01081303]
[1765497954910,0.01081244,92486.0,92481.0,0.01081303]
[1765497954911,0.01081244,92486.0,92484.0,0.01622613]
[1765497955143,0.2162484,92487.0,92484.0,0.02703881]
[1765497955357,0.21625018,92486.0,92484.0,0.01622613]
[1765497955556,0.044504,92485.0,92484.0,0.01622613]
[1765497956092,0.044504,92485.0,92484.0,0.01628479]
[1765497956585,0.045504,92485.0,92484.0,0.01628479]
[1765497956718,0.26175528,92485.0,92484.0,0.01628479]
[1765497956920,0.26075528,92485.0,92484.0,0.01628479]
[1765497957120,0.044504,92485.0,92484.0,0.01728479]
[1765497957332,0.044504,92485.0,92484.0,0.01628479]
[1765497957643,0.26075528,92485.0,92484.0,0.01628479]
[1765497957962,0.26175528,92485.0,92484.0,0.01828479]
[1765497958166,0.26175528,92485.0,92484.0,0.27352841]
[1765497958167,0.001,92485.0,92484.0,0.27352841]
[1765497958367,0.001,92485.0,92484.0,0.32410896]
[1765497959757,0.044504,92499.0,92496.0,0.01081127]
[1765497959963,0.21621855,92499.0,92498.0,0.01622613]
[1765497960281,0.25163753,92499.0,92498.0,0.01622613]
[1765497960953,0.21621855,92499.0,92498.0,0.05521613]
[1765497961154,0.21721855,92499.0,92498.0,0.03146613]
[1765497961416,0.001,92499.0,92498.0,0.03192651]
[1765497961577,0.002,92499.0,92498.0,0.03192651]
[1765497961793,0.21821855,92499.0,92498.0,0.03192651]
[1765497961995,0.21821855,92499.0,92498.0,0.01668651]
[1765497961996,0.06665385,92499.0,92498.0,0.01668651]
[1765497962226,0.26272255,92499.0,92498.0,0.01668651]
[1765497962607,0.26172255,92499.0,92498.0,0.01668651]
[1765497962972,0.26272255,92499.0,92498.0,0.01768651]
[1765497963597,0.046504,92499.0,92498.0,0.01768651]
[1765497963798,0.26272255,92499.0,92498.0,0.01768651]
[1765497964002,0.33548103,92499.0,92498.0,0.01768651]
[1765497964661,0.33548103,92499.0,92498.0,0.00146038]
[1765497964805,0.11926248,92499.0,92498.0,0.21768127]
[1765497965018,0.046504,92499.0,92498.0,0.21768127]
[1765497965486,0.046504,92499.0,92498.0,0.00146038]
[1765497965487,0.21821855,92499.0,92498.0,0.00146038]
[1765497965682,0.26433542,92499.0,92498.0,0.00146038]
[1765497970529,0.04811687,92499.0,92498.0,0.00146038]
[1765497970731,0.04811687,92499.0,92498.0,0.01768651]
[1765497970947,0.31563331,92499.0,92498.0,0.00146038]
[1765497971125,0.21983142,92499.0,92498.0,0.00146038]
[1765497971320,0.22983231,92499.0,92498.0,0.00146038]
[1765497973875,0.26433542,92499.0,92498.0,0.00146038]
[1765497977572,0.60505381,92499.0,92498.0,3.8e-07]
[1765497977773,0.26075528,92485.0,92484.0,5.866e-05]
[1765497978150,0.36063629,92485.0,92484.0,5.866e-05]
[1765497978311,0.65133629,92485.0,92484.0,5.866e-05]
[1765497978510,0.55145528,92485.0,92484.0,5.866e-05]
[1765497979302,0.55245528,92485.0,92484.0,0.00105866]
[1765497980514,0.55445528,92485.0,92484.0,0.00205866]
[1765497982688,0.26375528,92485.0,92484.0,0.04101866]
[1765497983147,0.003,92485.0,92484.0,0.04101866]
[1765497983330,0.003,92485.0,92484.0,0.04142159]
[1765497983787,0.002,92485.0,92484.0,0.04042159]
[1765497983996,0.046504,92485.0,92484.0,0.04042159]
[1765497984194,0.045504,92485.0,92484.0,0.04042159]
[1765497984941,0.045504,92485.0,92484.0,0.25767521]
[1765497984942,0.001,92485.0,92484.0,0.25767521]
[1765497985158,0.001,92485.0,92484.0,0.04142159]
[1765497985159,0.002,92485.0,92484.0,0.04142159]
[1765497985435,0.001,92485.0,92484.0,0.29548967]
[1765497985593,0.01081233,92487.0,92484.0,0.07823605]
[1765497985800,0.22706353,92487.0,92485.0,0.023]
[1765497986000,0.22705494,92489.0,92486.0,0.23220894]
[1765497986203,0.22705494,92489.0,92488.0,0.01596]
[1765497986755,0.22705494,92489.0,92488.0,0.03896]
[1765497987300,0.22705494,92489.0,92488.0,0.03996]
[1765497987712,0.22805494,92489.0,92488.0,0.04196]
[1765497990652,0.31671145,92489.0,92488.0,0.003]
[1765497990851,0.27220745,92489.0,92488.0,0.003]
[1765497991469,0.28220834,92489.0,92488.0,0.003]
[1765497991942,0.28220834,92489.0,92488.0,0.00328779]
[1765497992629,0.23805583,92489.0,92488.0,0.00328779]
[1765497994908,0.23805583,92489.0,92488.0,0.04224779]
[1765497995115,0.22805494,92489.0,92488.0,0.04224779]
[1765497995534,0.001,92489.0,92488.0,0.04224779]
[1765497995830,0.001,92489.0,92488.0,0.25849205]
[1765497996027,0.21724193,92489.0,92488.0,0.10018735]
[1765497996207,0.21724193,92489.0,92488.0,0.00328779]
[1765497996385,0.22624282,92489.0,92488.0,0.00128779]
[1765497996601,0.22624282,92489.0,92488.0,0.00028779]
[1765497996807,0.22724282,92489.0,92488.0,0.00228779]
[1765497997169,0.22724282,92489.0,92488.0,0.00328779]
[1765497997423,0.22624282,92489.0,92488.0,0.00028779]
[1765497997725,0.22724282,92489.0,92488.0,0.00328779]
[1765497997928,0.22724282,92489.0,92488.0,0.00228779]
[1765497998267,0.22824282,92489.0,92488.0,0.00328779]
[1765497999819,0.22724282,92489.0,92488.0,0.00128779]
[1765498000043,0.22824282,92489.0,92488.0,0.00228779]
[1765498004069,0.32026177,92489.0,92488.0,0.00228779]
[1765498006145,0.22824282,92489.0,92488.0,0.00228779]
[1765498013733,0.51894282,92489.0,92488.0,0.00228779]
[1765498014137,0.51794282,92489.0,92488.0,0.00128779]
[1765498014541,0.52094282,92489.0,92488.0,0.00228779]
[1765498014934,0.51994282,92489.0,92488.0,0.00128779]
[1765498015339,0.68246883,92489.0,92488.0,0.00228779]
[1765498015639,0.60147367,92485.0,92484.0,5.866e-05]
[1765498017554,0.61247367,92485.0,92484.0,5.866e-05]
[1765498018373,0.61247367,92485.0,92457.0,0.03881446]
[1765498018374,0.26081609,92459.0,92457.0,0.03881446]
[1765498018590,0.044504,92458.0,92457.0,0.03893124]
[1765498018810,0.31177489,92458.0,92457.0,0.03893124]
[1765498019402,0.31177489,92458.0,92457.0,0.03897231]
[1765498019576,0.31177489,92458.0,92457.0,0.03997231]
[1765498019984,0.26081843,92458.0,92457.0,0.03997231]
[1765498020448,0.26181843,92458.0,92457.0,0.03997231]
[1765498020948,0.26181843,92458.0,92457.0,0.03897231]
[1765498021405,0.26181843,92458.0,92457.0,0.04210678]
[1765498021406,0.21831443,92458.0,92457.0,0.04210678]
[1765498021615,0.002,92458.0,92457.0,0.04210678]
[1765498021825,0.001,92458.0,92457.0,0.25931606]
[1765498022176,0.01081478,92466.0,92460.0,0.01081548]
[1765498022384,0.22711825,92463.0,92460.0,0.05955615]
[1765498022593,0.22711825,92463.0,92461.0,0.02446]
[1765498022958,0.22711786,92463.0,92462.0,0.02798]
[1765498023678,0.22811786,92463.0,92462.0,0.04420613]
[1765498023868,0.22811786,92463.0,92462.0,0.06866613]
[1765498024022,0.22711786,92463.0,92462.0,0.06866613]
[1765498024245,0.21730273,92463.0,92462.0,0.06866613]
[1765498024647,0.001,92463.0,92462.0,0.06866613]
[1765498024847,0.21730273,92463.0,92462.0,0.06866613]
[1765498025071,0.001,92463.0,92462.0,0.36225076]
[1765498025475,0.001,92463.0,92462.0,0.14594569]
[1765498025678,0.002,92463.0,92462.0,0.14694569]
[1765498026048,0.002,92463.0,92462.0,0.2859712]
[1765498026580,0.002,92463.0,92462.0,0.06966613]
[1765498027013,0.002,92463.0,92462.0,0.2859712]
[1765498029424,0.002,92463.0,92462.0,0.06966613]
[1765498029620,0.002,92463.0,92462.0,0.2859712]
[1765498029847,0.002,92463.0,92462.0,0.28671971]
[1765498030260,0.002,92463.0,92462.0,0.07041464]
[1765498030437,0.002,92463.0,92462.0,0.39097998]
[1765498030844,0.002,92463.0,92462.0,0.17467491]
[1765498031627,0.002,92463.0,92462.0,0.07041464]
[1765498032366,0.002,92463.0,92462.0,0.28671971]
[1765498032900,0.002,92463.0,92462.0,0.34501172]
[1765498033661,0.002,92463.0,92462.0,0.28671971]
[1765498033868,0.002,92463.0,92462.0,0.57741971]
[1765498034079,0.002,92463.0,92462.0,0.68792733]
[1765498034485,0.001,92463.0,92462.0,0.68692733]
[1765498034654,0.22707518,92481.0,92477.0,0.22708211]
[1765498034934,0.22707518,92481.0,92465.0,0.0108149]
[1765498034935,0.01081186,92491.0,92486.0,0.01081244]
[1765498035088,0.2270446,92493.0,92489.0,0.01081209]
[1765498035295,0.01000089,92501.0,92496.0,0.21622389]
[1765498035296,0.22702456,92501.0,92496.0,0.21622389]
[1765498035496,0.21622556,92496.0,92495.0,0.0114]
[1765498035968,0.21622556,92496.0,92495.0,0.02691]
[1765498036129,0.21622556,92496.0,92483.0,0.03885779]
[1765498036130,0.21625128,92485.0,92483.0,0.03885779]
[1765498036330,0.21625362,92484.0,92483.0,0.00011678]
[1765498036646,0.01081197,92490.0,92486.0,0.01081244]
[1765498036852,0.01081186,92491.0,92487.0,0.22705715]
[1765498037048,0.01081197,92490.0,92487.0,0.0246]
[1765498037258,0.22704997,92491.0,92490.0,0.02743]
[1765498037691,0.22704997,92491.0,92490.0,0.05203]
[1765498037989,0.22804997,92491.0,92490.0,0.05203]
[1765498038390,0.001,92491.0,92490.0,0.05203]
[1765498038614,0.001,92491.0,92490.0,0.28081255]
[1765498038900,0.21723725,92491.0,92490.0,0.05203]
[1765498039036,0.21723725,92491.0,92490.0,0.02743]
[1765498039250,0.21623257,92493.0,92490.0,0.05203]
[1765498039592,0.21623257,92493.0,92492.0,0.01551]
[1765498040055,0.21623257,92493.0,92492.0,0.04011]
[1765498040462,0.21723257,92493.0,92492.0,0.04011]
[1765498040864,0.21823257,92493.0,92492.0,0.04111]
[1765498041068,0.21723257,92493.0,92492.0,0.04111]
[1765498041291,0.21823257,92493.0,92492.0,0.04311]
[1765498041487,0.21823257,92493.0,92492.0,0.003]
[1765498043414,0.21823257,92493.0,92492.0,0.04311]
[1765498043415,0.002,92493.0,92492.0,0.04311]
[1765498043612,0.002,92493.0,92492.0,0.05185667]
[1765498043819,0.21823257,92493.0,92492.0,0.04311]
[1765498044229,0.002,92493.0,92492.0,0.04311]
[1765498044629,0.002,92493.0,92492.0,0.25934491]
[1765498046601,0.002,92493.0,92492.0,0.29819004]
[1765498046808,0.002,92493.0,92492.0,0.36817584]
[1765498047008,0.002,92493.0,92492.0,0.46961433]
[1765498047247,0.002,92493.0,92492.0,0.4113239]
[1765498048401,0.002,92493.0,92492.0,0.7020239]
[1765498048603,0.001,92493.0,92492.0,0.7000239]
[1765498048961,0.002,92493.0,92492.0,0.7040239]
[1765498049307,0.001,92493.0,92492.0,0.7030239]
[1765498049508,0.002,92493.0,92492.0,0.7050239]
[1765498052182,0.002,92493.0,92492.0,0.66187584]
[1765498052442,0.002,92493.0,92492.0,0.55304491]
[1765498054482,0.002,92493.0,92492.0,0.26234491]
[1765498055164,0.002,92493.0,92492.0,0.30108293]
[1765498055486,0.002,92493.0,92492.0,0.26234491]
[1765498055696,0.01080999,92507.0,92492.0,0.26234491]
[1765498055697,0.21618202,92515.0,92512.0,0.21618786]
[1765498055901,0.22698104,92519.0,92515.0,0.02743]
[1765498056074,0.22697835,92520.0,92518.0,0.01551]
[1765498056275,0.22697835,92520.0,92516.0,0.0246]
[1765498056276,0.22697835,92520.0,92519.0,0.01551]
[1765498057114,0.22697835,92520.0,92519.0,0.04011]
[1765498057405,0.01080824,92522.0,92519.0,0.04011]
[1765498057620,0.21616733,92521.0,92520.0,0.0246]
[1765498058221,0.21616733,92521.0,92520.0,0.04011]
[1765498058421,5.871e-05,92521.0,92520.0,0.04011]
[1765498058787,0.21722585,92521.0,92520.0,0.04211]
[1765498059400,0.21722585,92521.0,92520.0,0.25927947]
[1765498059401,0.00105871,92521.0,92520.0,0.25927947]
[1765498061389,0.00105871,92521.0,92520.0,0.04311]
[1765498061594,0.21722585,92521.0,92520.0,0.003]
[1765498061800,0.26172985,92521.0,92520.0,0.003]
[1765498062007,0.21722585,92521.0,92520.0,0.003]
[1765498062211,0.26334272,92521.0,92520.0,0.003]
[1765498062633,0.21883872,92521.0,92520.0,0.003]
[1765498062841,0.26334272,92521.0,92520.0,0.003]
[1765498064784,0.04717558,92521.0,92520.0,0.003]
[1765498064991,0.00267158,92521.0,92520.0,0.01851]
[1765498065240,0.21883872,92521.0,92520.0,0.01851]
[1765498065800,0.21883872,92521.0,92520.0,0.003]
[1765498066342,0.22883961,92521.0,92520.0,0.003]
[1765498069224,0.22883961,92521.0,92520.0,0.002]
[1765498069785,0.23083961,92521.0,92520.0,0.002]
[1765498070372,0.22702085,92503.0,92500.0,0.05065971]
[1765498070570,0.01081046,92503.0,92500.0,0.01192]
[1765498070781,0.21621379,92502.0,92500.0,0.01192]
[1765498070996,0.21621387,92501.0,92499.0,0.03873971]
[1765498071204,0.21621855,92499.0,92498.0,0.05496584]
[1765498071423,0.21621855,92499.0,92498.0,0.03873971]
[1765498072896,0.001,92503.0,92500.0,0.01081081]
[1765498073139,0.044504,92500.0,92499.0,0.03873971]
[1765498073393,0.22702947,92499.0,92496.0,0.05810133]
[1765498073596,0.22703138,92499.0,92498.0,0.001]
[1765498073801,0.01081092,92499.0,92496.0,0.29787682]
[1765498074004,0.01081092,92499.0,92497.0,0.02355]
[1765498074205,0.22802992,92499.0,92498.0,0.004]
[1765498074419,0.001,92499.0,92498.0,0.22022089]
[1765498074769,0.044504,92500.0,92499.0,0.21621855]
[1765498075736,0.2715237,92503.0,92501.0,0.21621376]
[1765498075940,0.2715237,92503.0,92502.0,0.03886121]
[1765498075941,0.2270197,92503.0,92502.0,0.03886121]
[1765498076141,0.2715237,92503.0,92502.0,0.03886121]
[1765498077185,0.2280197,92503.0,92502.0,0.03986121]
[1765498078233,0.001,92503.0,92502.0,0.03986121]
[1765498078442,0.2627132,92503.0,92502.0,0.04186121]
[1765498079778,0.2627132,92503.0,92502.0,0.04147121]
[1765498080170,0.2627132,92503.0,92502.0,0.003]
[1765498086126,0.002,92503.0,92502.0,0.25873154]
[1765498086332,0.00167158,92521.0,92515.0,0.21618115]
[1765498086553,5.871e-05,92521.0,92520.0,0.21616947]
[1765498086764,5.871e-05,92521.0,92520.0,0.23213947]
[1765498086972,5.871e-05,92521.0,92520.0,0.25568947]
[1765498087192,5.871e-05,92521.0,92520.0,0.35215686]
[1765498088164,0.00105871,92521.0,92520.0,0.35415686]
[1765498088992,0.00105871,92521.0,92520.0,0.35515686]
[1765498089185,0.00105871,92521.0,92520.0,0.35415686]
[1765498089389,0.00105871,92521.0,92520.0,0.25768947]
[1765498089610,5.871e-05,92521.0,92520.0,0.25668947]
[1765498089848,0.00105871,92521.0,92520.0,0.25768947]
[1765498094402,0.00105871,92521.0,92520.0,0.25668947]
[1765498094403,5.871e-05,92521.0,92520.0,0.25668947]
[1765498094737,5.871e-05,92521.0,92520.0,0.25568947]
[1765498095231,5.871e-05,92521.0,92520.0,0.25668947]
[1765498095455,5.871e-05,92521.0,92520.0,0.3623818]
[1765498095663,0.00205871,92521.0,92520.0,0.3673818]
[1765498096196,0.00105871,92521.0,92520.0,0.3653818]
[1765498096596,0.00205871,92521.0,92520.0,0.3693818]
[1765498097857,0.00205871,92521.0,92520.0,0.0636]
[1765498098056,0.00205871,92521.0,92520.0,0.27976947]
[1765498099241,0.00205871,92521.0,92520.0,0.57046947]
[1765498105699,0.00205871,92521.0,92520.0,0.33722]
[1765498105898,0.00205871,92521.0,92520.0,0.55338947]
[1765498108201,0.00205871,92521.0,92520.0,0.5824798]
[1765498108405,0.00205871,92521.0,92520.0,0.33722]
[1765498108738,0.00205871,92521.0,92520.0,0.55338947]
[1765498110098,0.21822585,92521.0,92520.0,0.02297]
[1765498110298,0.26272985,92521.0,92520.0,0.007]
[1765498110502,0.21822585,92521.0,92520.0,0.0455]
[1765498110971,0.00205871,92521.0,92520.0,0.0455]
[1765498111598,0.00205871,92521.0,92520.0,0.32627046]
[1765498114426,0.00205871,92521.0,92520.0,0.38437179]
[1765498115398,0.00205871,92521.0,92520.0,0.32627046]
[1765498115613,0.00205871,92521.0,92520.0,0.26166947]
[1765498125716,0.00205871,92521.0,92520.0,0.55236947]
[1765498127562,0.00205871,92521.0,92520.0,0.59551753]
[1765498130630,0.22689589,92554.0,92520.0,0.59551753]
[1765498130631,0.01000089,92560.0,92548.0,0.0108052]
[1765498130842,0.01000089,92560.0,92549.0,0.01558]
[1765498130843,0.01080473,92552.0,92549.0,0.01558]
[1765498131044,0.01080473,92552.0,92549.0,0.05082]
[1765498131239,0.21609473,92552.0,92551.0,0.01558]
[1765498131722,0.21609473,92552.0,92551.0,0.0389]
[1765498131921,0.21709473,92552.0,92551.0,0.0389]
[1765498132168,0.044504,92555.0,92554.0,0.21609006]
[1765498132478,0.22689151,92556.0,92554.0,0.01558]
[1765498132635,0.22689151,92556.0,92555.0,0.0389]
[1765498132841,0.21609006,92554.0,92553.0,0.01192]
[1765498134002,0.21709006,92554.0,92553.0,0.01292]
[1765498134581,0.001,92554.0,92553.0,0.01292]
[1765498134893,0.001,92554.0,92553.0,0.2679124]
[1765498135089,0.001,92554.0,92553.0,0.28413853]
[1765498135307,0.001,92554.0,92553.0,0.06804613]
[1765498135483,0.21709006,92554.0,92553.0,0.04472613]
[1765498135687,0.001,92554.0,92553.0,0.26081853]
[1765498135906,0.001,92554.0,92553.0,0.06804613]
[1765498136090,0.21709006,92554.0,92553.0,0.06704613]
[1765498136292,0.26159406,92554.0,92553.0,0.01622613]
[1765498136494,0.26259406,92554.0,92553.0,0.01722613]
[1765498136695,0.26259406,92554.0,92553.0,0.001]
[1765498136908,0.32473845,92554.0,92553.0,0.001]
[1765498137311,0.22809095,92554.0,92553.0,0.001]
[1765498139227,0.22809095,92554.0,92541.0,0.02332]
[1765498139228,0.01080567,92544.0,92541.0,0.25024566]
[1765498139433,0.21611606,92543.0,92541.0,0.02332]
[1765498139638,0.21611606,92543.0,92542.0,0.02332]
[1765498139849,0.21611606,92543.0,92542.0,0.0389]
[1765498140062,0.27142316,92544.0,92536.0,0.02913585]
[1765498140063,0.22693134,92539.0,92536.0,0.02913585]
[1765498140267,0.01000089,92531.0,92530.0,0.02913585]
[1765498140478,0.26065712,92527.0,92526.0,0.0388478]
[1765498140688,0.26065712,92527.0,92520.0,0.0388478]
[1765498140689,0.2161648,92522.0,92520.0,0.0388478]
[1765498140921,0.044504,92521.0,92520.0,0.0388478]